fUSD/lending_fUSD_20250221
["ID","MTS","AMOUNT","RATE_DAILY","PERIOD"]
[353874995,1740107446166,-151.0,0.00012329,2]
[353874997,1740107446177,-151.451957,0.00012329,2]
[353874999,1740107446189,-151.0,0.00012329,2]
[353875001,1740107446199,-151.451957,0.00012329,2]
[353875003,1740107446208,-151.0,0.00012329,2]
[353875005,1740107446217,-151.451957,0.00012329,2]
[353875007,1740107446226,-151.0,0.00012329,2]
[353875010,1740107446236,-151.451957,0.00012329,2]
[353875012,1740107446246,-151.0,0.00012329,2]
[353875014,1740107446255,-151.451957,0.00012329,2]
[353875016,1740107446265,-151.0,0.00012329,2]
[353875018,1740107446274,-151.451957,0.00012329,2]
[353875020,1740107446283,-151.0,0.00012329,2]
[353875022,1740107446293,-151.0,0.00012329,2]
[353875025,1740107446302,-151.451957,0.00012329,2]
[353875026,1740107446312,-184.279084,0.00012329,2]
[353875028,1740107446321,-151.451957,0.00012329,2]
[353875030,1740107446330,-151.451957,0.00012329,2]
[353875032,1740107446340,-151.451957,0.00012329,2]
[353875034,1740107446349,-151.451957,0.00012329,2]
[353875036,1740107446358,-151.451957,0.00012329,2]
[353875039,1740107446371,-151.451957,0.00012329,2]
[353875040,1740107446380,-151.451957,0.00012329,2]
[353875042,1740107446391,-151.451957,0.00012329,2]
[353875044,1740107446400,-151.451957,0.00012329,2]
[353875046,1740107446409,-151.451957,0.00012329,2]
[353875048,1740107446418,-151.451957,0.00012329,2]
[353875050,1740107446427,-151.451966,0.00012329,2]
[353875052,1740107446436,-151.0,0.00012329,2]
[353875054,1740107446446,-151.0,0.00012329,2]
[353875056,1740107446455,-151.0,0.00012329,2]
[353875058,1740107446464,-151.0,0.00012329,2]
[353875060,1740107446473,-151.0,0.00012329,2]
[353875062,1740107446482,-151.0,0.00012329,2]
[353875064,1740107446491,-151.0,0.00012329,2]
[353875066,1740107446500,-151.0,0.00012329,2]
[353875068,1740107446509,-151.0,0.00012329,2]
[353875070,1740107446518,-151.0,0.00012329,2]
[353875072,1740107446527,-153.255713,0.00012329,2]
[353875074,1740107446537,-151.0,0.00012329,2]
[353875076,1740107446546,-151.0,0.00012329,2]
[353875078,1740107446556,-289.148024,0.00012329,2]
[353875080,1740107446567,-1806.744856,0.00012329,2]
[353875082,1740107446576,-1806.744856,0.00012329,2]
[353875084,1740107446585,-1806.744856,0.00012329,2]
[353875086,1740107446595,-1806.744856,0.00012329,2]
[353875088,1740107446604,-1806.744856,0.00012329,2]
[353875090,1740107446613,-1806.744856,0.00012329,2]
[353875092,1740107446623,-1806.744856,0.00012329,2]
[353875094,1740107446632,-1806.744856,0.00012329,2]
[353875097,1740107446645,-1806.744856,0.00012329,2]
[353875099,1740107446654,-1806.744856,0.00012329,2]
[353875101,1740107446663,-1806.744856,0.00012329,2]
[353875103,1740107446673,-1806.744856,0.00012329,2]
[353875105,1740107446682,-1806.744856,0.00012329,2]
[353875107,1740107446691,-1806.744856,0.00012329,2]
[353875109,1740107446700,-1806.744856,0.00012329,2]
[353875111,1740107446710,-1806.744856,0.00012329,2]
[353875113,1740107446720,-1806.744856,0.00012329,2]
[353875115,1740107446729,-1806.744856,0.00012329,2]
[353875117,1740107446739,-1806.744856,0.00012329,2]
[353875119,1740107446748,-1806.744866,0.00012329,2]
[353875121,1740107446758,-180.851637,0.00012329,2]
[353875123,1740107446767,-180.851637,0.00012329,2]
[353875125,1740107446776,-180.851637,0.00012329,2]
[353875127,1740107446785,-180.851637,0.00012329,2]
[353875129,1740107446794,-153.241177,0.00012329,2]
[353875131,1740107446803,-180.851637,0.00012329,2]
[353875133,1740107446812,-180.851637,0.00012329,2]
[353875135,1740107446821,-180.851637,0.00012329,2]
[353875137,1740107446830,-180.851637,0.00012329,2]
[353875139,1740107446840,-180.851637,0.00012329,2]
[353875141,1740107446849,-180.851637,0.00012329,2]
[353875143,1740107446858,-180.851637,0.00012329,2]
[353875145,1740107446868,-180.851637,0.00012329,2]
[353875146,1740107446877,-180.851637,0.00012329,2]
[353875148,1740107446887,-180.851637,0.00012329,2]
[353875150,1740107446896,-180.851637,0.00012329,2]
[353875152,1740107446905,-180.851637,0.00012329,2]
[353875154,1740107446915,-180.851637,0.00012329,2]
[353875156,1740107446924,-180.851637,0.00012329,2]
[353875158,1740107446934,-180.851637,0.00012329,2]
[353875160,1740107446943,-180.851632,0.00012329,2]
[353875162,1740107446952,-151.0,0.00012329,2]
[353875164,1740107446962,-220.913604,0.00012329,2]
[353875166,1740107446971,-190.843338,0.00012329,2]
[353875168,1740107446980,-190.843338,0.00012329,2]
[353875170,1740107446990,-190.843338,0.00012329,2]
[353875172,1740107447000,-190.843338,0.00012329,2]
[353875174,1740107447011,-190.843338,0.00012329,2]
[353875177,1740107447021,-190.843338,0.00012329,2]
[353875179,1740107447030,-190.843338,0.00012329,2]
[353875181,1740107447040,-190.843338,0.00012329,2]
[353875183,1740107447049,-190.843338,0.00012329,2]
[353875185,1740107447059,-190.843338,0.00012329,2]
[353875187,1740107447068,-190.843338,0.00012329,2]
[353875188,1740107447078,-190.843338,0.00012329,2]
[353875191,1740107447087,-190.843338,0.00012329,2]
[353875192,1740107447099,-190.843338,0.00012329,2]
[353875194,1740107447108,-190.843338,0.00012329,2]
[353875196,1740107447121,-190.843338,0.00012329,2]
[353875198,1740107447130,-190.843338,0.00012329,2]
[353875200,1740107447140,-190.843338,0.00012329,2]
[353875202,1740107447149,-190.843338,0.00012329,2]
[353875204,1740107447158,-190.843348,0.00012329,2]
[353875206,1740107447167,-151.0,0.00012329,2]
[353875208,1740107447179,-151.0,0.00012329,2]
[353875210,1740107447189,-151.0,0.00012329,2]
[353875212,1740107447198,-151.0,0.00012329,2]
[353875214,1740107447207,-151.0,0.00012329,2]
[353875216,1740107447216,-151.0,0.00012329,2]
[353875218,1740107447224,-151.0,0.00012329,2]
[353875220,1740107447233,-151.0,0.00012329,2]
[353875222,1740107447243,-171.804058,0.00012329,2]
[353875224,1740107447252,-151.0,0.00012329,2]
[353875226,1740107447261,-171.804058,0.00012329,2]
[353875228,1740107447271,-151.0,0.00012329,2]
[353875230,1740107447280,-171.804058,0.00012329,2]
[353875249,1740107447447,-297.021163,0.00012329,2]
[353875252,1740107447457,-171.804058,0.00012329,2]
[353875254,1740107447468,-171.804058,0.00012329,2]
[353875256,1740107447477,-171.804058,0.00012329,2]
[353875258,1740107447487,-171.804058,0.00012329,2]
[353875260,1740107447496,-171.804058,0.00012329,2]
[353875262,1740107447506,-171.804058,0.00012329,2]
[353875264,1740107447515,-171.804058,0.00012329,2]
[353875265,1740107447527,-171.804058,0.00012329,2]
[353875267,1740107447537,-171.804058,0.00012329,2]
[353875270,1740107447547,-171.804058,0.00012329,2]
[353875272,1740107447558,-171.804058,0.00012329,2]
[353875274,1740107447568,-171.804058,0.00012329,2]
[353875276,1740107447578,-171.804058,0.00012329,2]
[353875277,1740107447587,-171.804058,0.00012329,2]
[353875279,1740107447596,-171.804058,0.00012329,2]
[353875281,1740107447605,-171.804058,0.00012329,2]
[353875283,1740107447614,-171.80406,0.00012329,2]
[353875285,1740107447623,-453.069628,0.00012329,2]
[353875287,1740107447632,-453.069628,0.00012329,2]
[353875289,1740107447641,-453.069628,0.00012329,2]
[353875291,1740107447651,-453.069628,0.00012329,2]
[353875293,1740107447661,-453.069628,0.00012329,2]
[353875295,1740107447671,-453.069628,0.00012329,2]
[353875298,1740107447681,-453.069628,0.00012329,2]
[353875299,1740107447691,-453.069628,0.00012329,2]
[353875301,1740107447700,-453.069628,0.00012329,2]
[353875303,1740107447710,-453.069628,0.00012329,2]
[353875305,1740107447719,-453.069628,0.00012329,2]
[353875308,1740107447729,-453.069628,0.00012329,2]
[353875309,1740107447738,-453.069628,0.00012329,2]
[353875311,1740107447748,-453.069628,0.00012329,2]
[353875313,1740107447758,-151.0,0.00012329,2]
[353875315,1740107447767,-453.069628,0.00012329,2]
[353875317,1740107447777,-151.0,0.00012329,2]
[353875320,1740107447787,-151.0,0.00012329,2]
[353875322,1740107447796,-151.0,0.00012329,2]
[353875324,1740107447805,-453.069628,0.00012329,2]
[353875326,1740107447815,-453.069628,0.00012329,2]
[353875328,1740107447824,-151.0,0.00012329,2]
[353875330,1740107447833,-453.069628,0.00012329,2]
[353875332,1740107447842,-151.0,0.00012329,2]
[353875333,1740107447852,-453.069628,0.00012329,2]
[353875335,1740107447861,-288.0,0.00012329,2]
[353875337,1740107447870,-453.069629,0.00012329,2]
[353875339,1740107447879,-1321.141766,0.00012329,2]
[353875341,1740107447889,-1321.141766,0.00012329,2]
[353875343,1740107447898,-1321.141766,0.00012329,2]
[353875345,1740107447908,-1321.141766,0.00012329,2]
[353875347,1740107447918,-1321.141766,0.00012329,2]
[353875349,1740107447927,-1321.141766,0.00012329,2]
[353875351,1740107447936,-1321.141766,0.00012329,2]
[353875353,1740107447945,-1321.141766,0.00012329,2]
[353875355,1740107447955,-1321.141766,0.00012329,2]
[353875357,1740107447964,-1321.141766,0.00012329,2]
[353875359,1740107447974,-1321.141766,0.00012329,2]
[353875361,1740107447982,-151.0,0.00012329,2]
[353875363,1740107447992,-1321.141766,0.00012329,2]
[353875365,1740107448002,-151.0,0.00012329,2]
[353875367,1740107448012,-1321.141766,0.00012329,2]
[353875369,1740107448022,-151.0,0.00012329,2]
[353875371,1740107448032,-1321.141766,0.00012329,2]
[353875373,1740107448041,-151.656614,0.00012329,2]
[353875375,1740107448051,-1321.141766,0.00012329,2]
[353875377,1740107448061,-1321.141766,0.00012329,2]
[353875380,1740107448072,-1321.141766,0.00012329,2]
[353875381,1740107448082,-1321.141766,0.00012329,2]
[353875384,1740107448092,-1321.141766,0.00012329,2]
[353875386,1740107448105,-1321.141756,0.00012329,2]
[353875387,1740107448115,-151.378759,0.00012329,2]
[353875389,1740107448124,-152.244163,0.00012329,2]
[353875391,1740107448134,-154.173244,0.00012329,2]
[353875393,1740107448145,-452.880795,0.00012329,2]
[353875396,1740107448154,-452.880795,0.00012329,2]
[353875397,1740107448163,-10000.0,0.00012329,2]
[353875399,1740107448172,-452.880795,0.00012329,2]
[353875400,1740107448185,-10000.0,0.00012329,2]
[353875401,1740107448194,-452.880795,0.00012329,2]
[353875402,1740107448203,-10000.0,0.00012329,2]
[353875403,1740107448213,-10000.0,0.00012329,2]
[353875404,1740107448222,-452.880795,0.00012329,2]
[353875405,1740107448232,-10000.0,0.00012329,2]
[353875406,1740107448241,-452.880795,0.00012329,2]
[353875407,1740107448251,-452.880795,0.00012329,2]
[353875408,1740107448261,-10000.0,0.00012329,2]
[353875410,1740107448270,-452.880795,0.00012329,2]
[353875412,1740107448279,-10000.0,0.00012329,2]
[353875414,1740107448289,-10000.0,0.00012329,2]
[353875416,1740107448298,-452.880795,0.00012329,2]
[353875418,1740107448307,-452.880795,0.00012329,2]
[353875420,1740107448316,-10000.0,0.00012329,2]
[353875422,1740107448325,-452.880795,0.00012329,2]
[353875424,1740107448334,-10000.0,0.00012329,2]
[353875426,1740107448344,-10000.0,0.00012329,2]
[353875428,1740107448353,-452.880795,0.00012329,2]
[353875430,1740107448362,-10000.0,0.00012329,2]
[353875432,1740107448372,-452.880795,0.00012329,2]
[353875434,1740107448381,-10000.0,0.00012329,2]
[353875436,1740107448391,-452.880795,0.00012329,2]
[353875438,1740107448400,-10000.0,0.00012329,2]
[353875440,1740107448410,-452.880795,0.00012329,2]
[353875442,1740107448419,-10000.0,0.00012329,2]
[353875444,1740107448428,-452.880795,0.00012329,2]
[353875446,1740107448438,-10000.0,0.00012329,2]
[353875448,1740107448447,-452.880795,0.00012329,2]
[353875450,1740107448457,-10000.0,0.00012329,2]
[353875452,1740107448466,-452.880795,0.00012329,2]
[353875454,1740107448476,-10000.0,0.00012329,2]
[353875456,1740107448485,-452.880795,0.00012329,2]
[353875458,1740107448494,-10000.0,0.00012329,2]
[353875460,1740107448504,-452.880799,0.00012329,2]
[353875462,1740107448514,-10000.0,0.00012329,2]
[353875465,1740107448523,-10000.0,0.00012329,2]
[353875467,1740107448533,-10000.0,0.00012329,2]
[353875469,1740107448542,-10000.0,0.00012329,2]
[353875471,1740107448551,-10000.0,0.00012329,2]
[353875473,1740107448563,-10000.0,0.00012329,2]
[353875475,1740107448572,-151.0,0.00012329,2]
[353875477,1740107448581,-10000.0,0.00012329,2]
[353875478,1740107448590,-162.842001,0.00012329,2]
[353875480,1740107448599,-10000.0,0.00012329,2]
[353875482,1740107448608,-10000.0,0.00012329,2]
[353875484,1740107448618,-10000.0,0.00012329,2]
[353875486,1740107448627,-151.0,0.00012329,2]
[353875489,1740107448637,-10000.0,0.00012329,2]
[353875490,1740107448646,-151.0,0.00012329,2]
[353875492,1740107448655,-10000.0,0.00012329,2]
[353875494,1740107448664,-151.0,0.00012329,2]
[353875496,1740107448674,-151.0,0.00012329,2]
[353875498,1740107448684,-10000.0,0.00012329,2]
[353875500,1740107448694,-151.0,0.00012329,2]
[353875502,1740107448703,-10000.0,0.00012329,2]
[353875504,1740107448713,-151.0,0.00012329,2]
[353875506,1740107448723,-10000.0,0.00012329,2]
[353875508,1740107448732,-151.0,0.00012329,2]
[353875510,1740107448742,-10000.0,0.00012329,2]
[353875512,1740107448752,-427.642586,0.00012329,2]
[353875515,1740107448762,-10000.0,0.00012329,2]
[353875516,1740107448771,-10000.0,0.00012329,2]
[353875518,1740107448781,-151.0,0.00012329,2]
[353875520,1740107448791,-10000.0,0.00012329,2]
[353875522,1740107448801,-151.0,0.00012329,2]
[353875524,1740107448810,-427.642586,0.00012329,2]
[353875526,1740107448820,-10000.0,0.00012329,2]
[353875528,1740107448830,-151.0,0.00012329,2]
[353875530,1740107448839,-427.642586,0.00012329,2]
[353875532,1740107448849,-151.0,0.00012329,2]
[353875534,1740107448858,-427.642586,0.00012329,2]
[353875536,1740107448867,-151.0,0.00012329,2]
[353875538,1740107448877,-10000.0,0.00012329,2]
[353875540,1740107448886,-427.642586,0.00012329,2]
[353875542,1740107448895,-151.0,0.00012329,2]
[353875544,1740107448904,-10000.0,0.00012329,2]
[353875546,1740107448913,-427.642586,0.00012329,2]
[353875548,1740107448922,-151.0,0.00012329,2]
[353875550,1740107448932,-10000.0,0.00012329,2]
[353875552,1740107448941,-427.642586,0.00012329,2]
[353875554,1740107448951,-222.074698,0.00012329,2]
[353875556,1740107448961,-222.074698,0.00012329,2]
[353875558,1740107448971,-222.074698,0.00012329,2]
[353875560,1740107448980,-222.07469,0.00012329,2]
[353875562,1740107448990,-151.0,0.00012329,2]
[353875564,1740107449001,-151.0,0.00012329,2]
[353875566,1740107449011,-151.0,0.00012329,2]
[353875568,1740107449020,-502.741747,0.00012329,2]
[353875570,1740107449029,-502.741747,0.00012329,2]
[353875572,1740107449039,-502.741747,0.00012329,2]
[353875574,1740107449048,-502.741747,0.00012329,2]
[353875576,1740107449057,-502.741747,0.00012329,2]
[353875578,1740107449067,-502.74174,0.00012329,2]
[353875580,1740107449076,-1311.10627,0.0001235,2]
[353875582,1740107449085,-525.50821416,0.00012363,2]
[353875584,1740107449096,-525.50821416,0.00012365,2]
[353875586,1740107449108,-300.0,0.00012366,2]
[353875588,1740107449118,-16323.59400636,0.00012367,2]
[353875590,1740107449128,-212.62397435,0.00012373,2]
[353875592,1740107449139,-525.50821416,0.00012373,2]
[353875594,1740107449149,-2213.85,0.00012382,2]
[353875596,1740107449158,-200.0,0.00012388,2]
[353875598,1740107449167,-406.02084368,0.00012425,2]
[353875600,1740107449177,-500.0,0.00012465,2]
[353875602,1740107449188,-300.0,0.00012489,2]
[353875604,1740107449198,-300.0,0.00012489,2]
[353875606,1740107449208,-300.0,0.00012489,2]
[353875608,1740107449218,-300.0,0.00012489,2]
[353875610,1740107449227,-306.61480414,0.00012489,2]
[353875612,1740107449237,-113843.90077191,0.0001249,2]
[353875614,1740107449247,-155.0,0.00012526,2]
[353875616,1740107449257,-155.0,0.00012526,2]
[353875618,1740107449268,-155.0,0.00012526,2]
[353875620,1740107449279,-185.44161768,0.00012526,2]
[353875622,1740107449288,-205.05140187,0.00012567,2]
[353875624,1740107449298,-1600.0,0.000126,2]
[353875626,1740107449308,-500.0,0.00012602,2]
[353875628,1740107449318,-605.09,0.00012605,2]
[353875630,1740107449328,-1000.0,0.00012614,2]
[353875632,1740107449339,-150.0,0.00012622,2]
[353875634,1740107449349,-166.22,0.00012626,2]
[353875636,1740107449359,-1000.0,0.00012683,2]
[353875638,1740107449368,-150.0,0.00012692,2]
[353875640,1740107449378,-250.87541579,0.00012707,2]
[353875642,1740107449387,-1000.0,0.0001271,2]
[353875644,1740107449397,-150.0,0.00012719,2]
[353875646,1740107449407,-150.0,0.00012723,2]
[353875648,1740107449416,-500.0,0.00012739,2]
[353875649,1740107449425,-150.0,0.00012753,2]
[353875651,1740107449434,-1000.0,0.00012756,2]
[353875653,1740107449444,-300.0,0.00012777,2]
[353875656,1740107449454,-150.0,0.00012777,2]
[353875657,1740107449464,-16323.59400636,0.00012778,2]
[353875660,1740107449475,-150.0,0.00012787,2]
[353875662,1740107449486,-1062.912578,0.00012815,2]
[353875664,1740107449497,-150.0,0.0001282,2]
[353875666,1740107449508,-150.0,0.00012823,2]
[353875667,1740107449518,-1000.0,0.00012844,2]
[353875670,1740107449529,-823.0,0.00012869,2]
[353875671,1740107449539,-500.0,0.00012876,2]
[353875674,1740107449549,-150.0,0.00012876,2]
[353875676,1740107449560,-150.0,0.00012901,2]
[353875678,1740107449570,-150.0,0.00012903,2]
[353875680,1740107449580,-698.72849456,0.00012904,2]
[353875681,1740107449591,-150.0,0.00012908,2]
[353875683,1740107449600,-1000.0,0.00012939,2]
[353875685,1740107449610,-150.0,0.00012942,2]
[353875687,1740107449620,-150.0,0.0001297,2]
[353875689,1740107449631,-927.31769076,0.00012977,2]
[353875691,1740107449641,-150.0,0.0001298,2]
[353875693,1740107449651,-1000.0,0.00012985,2]
[353875695,1740107449661,-300.0,0.00012999,2]
[353875697,1740107449671,-500.0,0.00013,2]
[353875699,1740107449682,-500.0,0.00013,2]
[353875702,1740107449692,-500.0,0.00013,2]
[353875704,1740107449702,-500.0,0.00013,2]
[353875706,1740107449712,-500.0,0.00013,2]
[353875707,1740107449722,-500.0,0.00013,2]
[353875710,1740107449731,-500.0,0.00013,2]
[353875711,1740107449740,-500.0,0.00013,2]
[353875713,1740107449752,-500.0,0.00013,2]
[353875716,1740107449761,-500.0,0.00013,2]
[353875718,1740107449771,-500.0,0.00013,2]
[353875720,1740107449780,-500.0,0.00013,2]
[353875722,1740107449789,-500.0,0.00013,2]
[353875724,1740107449799,-500.0,0.00013,2]
[353875726,1740107449808,-500.0,0.00013,2]
[353875727,1740107449817,-500.0,0.00013,2]
[353875729,1740107449827,-500.0,0.00013,2]
[353875731,1740107449836,-500.0,0.00013,2]
[353875733,1740107449845,-500.0,0.00013,2]
[353875735,1740107449854,-500.0,0.00013,2]
[353875737,1740107449865,-500.0,0.00013,2]
[353875739,1740107449874,-500.0,0.00013,2]
[353875741,1740107449883,-500.0,0.00013,2]
[353875743,1740107449892,-500.0,0.00013,2]
[353875745,1740107449902,-500.0,0.00013,2]
[353875747,1740107449913,-500.0,0.00013,2]
[353875749,1740107449922,-500.0,0.00013,2]
[353875751,1740107449932,-500.0,0.00013,2]
[353875753,1740107449942,-500.0,0.00013,2]
[353875756,1740107449952,-500.0,0.00013,2]
[353875758,1740107449963,-500.0,0.00013,2]
[353875760,1740107449972,-261.71,0.00013,2]
[353875761,1740107449981,-500.0,0.00013,2]
[353875763,1740107449991,-500.0,0.00013,2]
[353875765,1740107450001,-238.7,0.00013,2]
[353875767,1740107450011,-238.7,0.00013,2]
[353875770,1740107450021,-238.7,0.00013,2]
[353875771,1740107450030,-238.7,0.00013,2]
[353875773,1740107450040,-238.7,0.00013,2]
[353875775,1740107450049,-238.7,0.00013,2]
[353875777,1740107450058,-238.7,0.00013,2]
[353875779,1740107450067,-238.7,0.00013,2]
[353875782,1740107450077,-238.7,0.00013,2]
[353875784,1740107450087,-238.7,0.00013,2]
[353875785,1740107450098,-238.7,0.00013,2]
[353875787,1740107450108,-238.7,0.00013,2]
[353875789,1740107450118,-238.7,0.00013,2]
[353875791,1740107450127,-238.7,0.00013,2]
[353875793,1740107450137,-238.7,0.00013,2]
[353875795,1740107450147,-238.7,0.00013,2]
[353875797,1740107450156,-238.7,0.00013,2]
[353875799,1740107450166,-238.7,0.00013,2]
[353875801,1740107450178,-238.7,0.00013,2]
[353875803,1740107450188,-238.7,0.00013,2]
[353875805,1740107450197,-238.7,0.00013,2]
[353875807,1740107450206,-238.7,0.00013,2]
[353875809,1740107450216,-238.7,0.00013,2]
[353875811,1740107450226,-238.7,0.00013,2]
[353875813,1740107450235,-238.7,0.00013,2]
[353875815,1740107450243,-238.7,0.00013,2]
[353875817,1740107450254,-238.7,0.00013,2]
[353875819,1740107450263,-238.7,0.00013,2]
[353875821,1740107450273,-238.7,0.00013,2]
[353875823,1740107450282,-238.7,0.00013,2]
[353875825,1740107450292,-238.7,0.00013,2]
[353875827,1740107450301,-238.7,0.00013,2]
[353875829,1740107450310,-238.7,0.00013,2]
[353875830,1740107450320,-238.7,0.00013,2]
[353875831,1740107450330,-238.7,0.00013,2]
[353875832,1740107450339,-238.7,0.00013,2]
[353875833,1740107450348,-238.7,0.00013,2]
[353875834,1740107450358,-238.7,0.00013,2]
[353875835,1740107450368,-238.7,0.00013,2]
[353875836,1740107450377,-150.0,0.00013002,2]
[353875837,1740107450387,-1000.0,0.00013006,2]
[353875838,1740107450396,-150.0,0.00013008,2]
[353875840,1740107450405,-500.0,0.00013013,2]
[353875842,1740107450414,-150.0,0.00013013,2]
[353875844,1740107450423,-150.0,0.00013035,2]
[353875846,1740107450433,-150.0,0.00013049,2]
[353875848,1740107450443,-150.0,0.0001305,2]
[353875850,1740107450452,-150.0,0.00013063,2]
[353875852,1740107450462,-150.0,0.00013087,2]
[353875854,1740107450471,-203.9,0.000131,2]
[353875856,1740107450480,-169.71765791,0.000131,2]
[353875858,1740107450490,-1008.0,0.000131,2]
[353875860,1740107450499,-205.05140187,0.00013122,2]
[353875862,1740107450508,-150.0,0.00013125,2]
[353875864,1740107450518,-1000.0,0.00013139,2]
[353875866,1740107450527,-500.0,0.0001315,2]
[353875868,1740107450537,-150.0,0.00013158,2]
[353875870,1740107450546,-150.0,0.00013162,2]
[353875872,1740107450556,-1500.0,0.00013162,2]
[353875874,1740107450566,-150.0,0.00013164,2]
[353875876,1740107450576,-1000.0,0.00013176,2]
[353875878,1740107450585,-150.0,0.00013185,2]
[353875880,1740107450595,-300.0,0.00013188,2]
[353875882,1740107450604,-16323.59400636,0.00013189,2]
[353875884,1740107450613,-416.2267949,0.00013189,2]
[353875886,1740107450623,-62160.83965445,0.0001319,2]
[353875888,1740107450633,-1000.0,0.00013211,2]
[353875890,1740107450642,-150.0,0.00013237,2]
[353875892,1740107450651,-150.0,0.00013251,2]
[353875894,1740107450661,-150.0,0.00013264,2]
[353875896,1740107450671,-1000.0,0.00013281,2]
[353875898,1740107450680,-150.0,0.00013282,2]
[353875900,1740107450689,-150.0,0.00013283,2]
[353875902,1740107450698,-500.0,0.00013287,2]
[353875904,1740107450707,-1000.0,0.000133,2]
[353875906,1740107450716,-5008.31612,0.00013309,2]
[353875908,1740107450725,-1000.0,0.00013322,2]
[353875910,1740107450735,-150.0,0.00013332,2]
[353875912,1740107450745,-150.0,0.00013335,2]
[353875914,1740107450755,-150.0,0.00013339,2]
[353875916,1740107450764,-150.0,0.00013341,2]
[353875918,1740107450774,-314.39149875,0.00013342,2]
[353875920,1740107450784,-150.0,0.00013358,2]
[353875922,1740107450793,-1000.0,0.00013363,2]
[353875924,1740107450803,-150.0,0.00013363,2]
[353875926,1740107450812,-150.0,0.00013366,2]
[353875928,1740107450821,-42604.4249913,0.0001337,2]
[353875930,1740107450831,-1000.0,0.00013374,2]
[353875932,1740107450840,-1000.0,0.00013378,2]
[353875934,1740107450850,-1014.79069273,0.00013382,2]
[353875936,1740107450859,-150.0,0.00013382,2]
[353875938,1740107450869,-150.0,0.0001339,2]
[353875940,1740107450878,-150.0,0.00013398,2]
[353875942,1740107450887,-150.0,0.00013403,2]
[353875944,1740107450897,-150.0,0.00013409,2]
[353875946,1740107450907,-150.0,0.0001341,2]
[353875948,1740107450916,-1359.06193725,0.00013414,2]
[353875950,1740107450925,-168.54162663,0.00013416,2]
[353875952,1740107450935,-250.40935307,0.00013424,2]
[353875954,1740107450945,-500.0,0.00013424,7]
[353875956,1740107450955,-508.06508612,0.00013424,2]
[353875972,1740107451105,-512.64639204,0.00013424,2]
[353875974,1740107451116,-513.11347313,0.00013424,2]
[353875976,1740107451126,-514.85263971,0.00013424,2]
[353875978,1740107451136,-513.33593653,0.00013424,2]
[353875980,1740107451147,-513.89306755,0.00013424,2]
[353875982,1740107451157,-504.52148648,0.00013424,2]
[353875984,1740107451167,-515.02439281,0.00013424,2]
[353875986,1740107451179,-513.13375718,0.00013424,2]
[353875988,1740107451190,-522.99405051,0.00013424,2]
[353875991,1740107451200,-596.09490195,0.00013424,2]
[353875993,1740107451210,-511.42781098,0.00013424,2]
[353875995,1740107451219,-500.0,0.00013424,2]
[353875997,1740107451229,-506.92738412,0.00013424,2]
[353875999,1740107451238,-506.03436623,0.00013424,2]
[353876001,1740107451247,-501.19437362,0.00013424,2]
[353876002,1740107451257,-500.92033382,0.00013424,2]
[353876004,1740107451266,-500.0,0.00013424,2]
[353876006,1740107451277,-502.51727607,0.00013424,2]